[Event "Masters Tournament (MTO)"]
[Site "Biel, Switzerland"]
[Date "2026.07.13"]
[Round "1.22"]
[White "Coban, Ege"]
[Black "Udelnov, Valentin"]
[Result "1-0"]
[TimeControl "100+30+30sec/move"]
[WhiteTitle "-"]
[BlackTitle "-"]
[WhiteFideId "26320304"]
[BlackFideId "16265734"]
[WhiteElo "1986"]
[BlackElo "2269"]

1. e4 {[%clk 01:40:57]} {[%emt 00:00:04]} e5 {[%clk 01:40:56]} {[%emt
00:00:04]} 2. Nf3 {[%clk 01:41:22]} {[%emt 00:00:05]} Nc6 {[%clk 01:41:23]}
{[%emt 00:00:03]} 3. Bb5 {[%clk 01:41:48]} {[%emt 00:00:04]} a6 {[%clk
01:41:48]} {[%emt 00:00:04]} 4. Ba4 {[%clk 01:42:15]} {[%emt 00:00:04]} d6
{[%clk 01:42:14]} {[%emt 00:00:04]} 5. c4 {[%clk 01:42:38]} {[%emt 00:00:07]}
Bg4 {[%clk 01:41:51]} {[%emt 00:00:53]} 6. Nc3 {[%clk 01:42:25]} {[%emt
00:00:42]} Nf6 {[%clk 01:41:52]} {[%emt 00:00:29]} 7. d3 {[%clk 01:42:12]}
{[%emt 00:00:43]} Be7 {[%clk 01:41:54]} {[%emt 00:00:28]} 8. Be3 {[%clk
01:41:28]} {[%emt 00:01:15]} O-O {[%clk 01:40:30]} {[%emt 00:01:53]} 9. h3
{[%clk 01:41:09]} {[%emt 00:00:50]} Bxf3 {[%clk 01:38:14]} {[%emt 00:02:45]} 10.
Qxf3 {[%clk 01:41:21]} {[%emt 00:00:18]} Nb4 {[%clk 01:21:39]} {[%emt
00:17:06]} 11. Qe2 {[%clk 01:34:36]} {[%emt 00:07:15]} c5 {[%clk 01:20:29]}
{[%emt 00:01:40]} 12. O-O {[%clk 01:33:26]} {[%emt 00:01:39]} Ne8 {[%clk
01:13:34]} {[%emt 00:07:26]} 13. a3 {[%clk 01:31:11]} {[%emt 00:02:45]} Nc6
{[%clk 01:12:10]} {[%emt 00:01:54]} 14. Nd5 {[%clk 01:29:23]} {[%emt 00:02:18]}
Bg5 {[%clk 01:01:37]} {[%emt 00:11:02]} 15. Qg4 {[%clk 01:27:53]} {[%emt
00:02:00]} h6 {[%clk 01:00:38]} {[%emt 00:01:29]} 16. h4 {[%clk 01:14:42]}
{[%emt 00:13:42]} Bxe3 {[%clk 00:33:08]} {[%emt 00:28:00]} 17. fxe3 {[%clk
01:14:57]} {[%emt 00:00:14]} Kh8 {[%clk 00:27:31]} {[%emt 00:06:07]} 18. Rf3
{[%clk 01:12:11]} {[%emt 00:03:16]} Rb8 {[%clk 00:16:50]} {[%emt 00:11:12]} 19.
Raf1 {[%clk 01:12:20]} {[%emt 00:00:20]} f6 {[%clk 00:17:07]} {[%emt 00:00:13]}
20. Rg3 {[%clk 01:04:17]} {[%emt 00:08:33]} b5 {[%clk 00:15:52]} {[%emt
00:01:46]} 21. cxb5 {[%clk 01:03:51]} {[%emt 00:00:56]} axb5 {[%clk 00:16:11]}
{[%emt 00:00:10]} 22. Bb3 {[%clk 01:04:14]} {[%emt 00:00:07]} c4 {[%clk
00:15:39]} {[%emt 00:01:02]} 23. dxc4 {[%clk 01:04:23]} {[%emt 00:00:21]} Na5
{[%clk 00:16:04]} {[%emt 00:00:05]} 24. Bd1 {[%clk 01:02:13]} {[%emt 00:02:40]}
Nxc4 {[%clk 00:15:51]} {[%emt 00:00:43]} 25. Qh5 {[%clk 01:00:24]} {[%emt
00:02:20]} Nd2 {[%clk 00:10:40]} {[%emt 00:05:41]} 26. Rf5 {[%clk 00:52:44]}
{[%emt 00:08:10]} Rc8 {[%clk 00:07:41]} {[%emt 00:03:29]} 27. Be2 {[%clk
00:50:38]} {[%emt 00:02:36]} Nxe4 {[%clk 00:06:45]} {[%emt 00:01:27]} 28. Rg6
{[%clk 00:50:22]} {[%emt 00:00:45]} Qd7 {[%clk 00:02:21]} {[%emt 00:04:54]} 29.
Bd3 {[%clk 00:42:48]} {[%emt 00:08:03]} Rc1+ {[%clk 00:02:03]} {[%emt
00:00:48]} 30. Kh2 {[%clk 00:43:12]} {[%emt 00:00:06]} Nc5 {[%clk 00:01:44]}
{[%emt 00:00:49]} 31. Bxb5 {[%clk 00:43:23]} {[%emt 00:00:19]} Qe6 {[%clk
00:00:44]} {[%emt 00:01:31]} 32. Bxe8 {[%clk 00:43:13]} {[%emt 00:00:39]} Rxe8
{[%clk 00:00:33]} {[%emt 00:00:42]} 33. Rfxf6 {[%clk 00:43:20]} {[%emt
00:00:22]} Qxd5 {[%clk 00:00:38]} {[%emt 00:00:25]} 34. Rxh6+ {[%clk 00:43:34]}
{[%emt 00:00:17]} gxh6 {[%clk 00:01:00]} {[%emt 00:00:07]} 35. Rxh6+ {[%clk
00:43:41]} {[%emt 00:00:23]} Kg7 {[%clk 00:01:06]} {[%emt 00:00:24]} 36. Qg6+
{[%clk 00:44:07]} {[%emt 00:00:04]} Kf8 {[%clk 00:01:32]} {[%emt 00:00:04]} 37.
Qf6+ {[%clk 00:44:34]} {[%emt 00:00:04]} Qf7 {[%clk 00:01:56]} {[%emt
00:00:06]} 38. Rh8# {[%clk 00:45:01]} {[%emt 00:00:03]} 1-0

[Event "Masters Tournament (MTO)"]
[Site "Biel, Switzerland"]
[Date "2026.07.13"]
[Round "1.23"]
[White "Rappazzo, Johannes"]
[Black "Celis, Joel"]
[Result "1-0"]
[TimeControl "100+30+30sec/move"]
[WhiteTitle "-"]
[BlackTitle "-"]
[WhiteFideId "1340069"]
[BlackFideId "15400212"]
[WhiteElo "2268"]
[BlackElo "1981"]

1. e4 {[%clk 01:40:57]} {[%emt 00:00:02]} c5 {[%clk 01:32:04]} {[%emt
00:08:57]} 2. Nf3 {[%clk 01:41:13]} {[%emt 00:00:14]} Nc6 {[%clk 01:32:25]}
{[%emt 00:00:09]} 3. d4 {[%clk 01:41:33]} {[%emt 00:00:10]} cxd4 {[%clk
01:32:44]} {[%emt 00:00:11]} 4. Nxd4 {[%clk 01:41:59]} {[%emt 00:00:04]} g6
{[%clk 01:33:05]} {[%emt 00:00:10]} 5. Nc3 {[%clk 01:42:21]} {[%emt 00:00:08]}
Bg7 {[%clk 01:33:23]} {[%emt 00:00:12]} 6. Be3 {[%clk 01:42:43]} {[%emt
00:00:07]} Nf6 {[%clk 01:33:28]} {[%emt 00:00:25]} 7. Bc4 {[%clk 01:42:38]}
{[%emt 00:00:35]} O-O {[%clk 01:33:37]} {[%emt 00:00:21]} 8. Bb3 {[%clk
01:42:32]} {[%emt 00:00:37]} Re8 {[%clk 01:33:39]} {[%emt 00:00:27]} 9. f4
{[%clk 01:41:48]} {[%emt 00:01:14]} d6 {[%clk 01:33:38]} {[%emt 00:00:31]} 10.
Qf3 {[%clk 01:40:28]} {[%emt 00:01:50]} Bg4 {[%clk 01:27:27]} {[%emt 00:06:41]}
11. Qf2 {[%clk 01:35:34]} {[%emt 00:05:25]} Bd7 {[%clk 01:11:34]} {[%emt
00:16:22]} 12. h3 {[%clk 01:31:11]} {[%emt 00:04:53]} e6 {[%clk 00:40:30]}
{[%emt 00:31:35]} 13. Ndb5 {[%clk 01:21:08]} {[%emt 00:10:33]} Nxe4 {[%clk
00:19:49]} {[%emt 00:21:11]} 14. Nxe4 {[%clk 01:20:27]} {[%emt 00:01:10]} Bxb2
{[%emt 00:12:18]} 15. Rd1 {[%clk 01:09:03]} d5 {[%clk 00:14:43]} {[%emt
00:05:42]} 16. c3 {[%clk 01:04:25]} {[%emt 00:05:07]} Na5 {[%clk 00:08:34]}
{[%emt 00:06:40]} 17. Qxb2 {[%clk 01:00:25]} {[%emt 00:04:30]} Bxb5 {[%clk
00:05:50]} {[%emt 00:03:14]} 18. c4 {[%clk 01:00:09]} {[%emt 00:00:46]} Nxb3
{[%clk 00:03:56]} {[%emt 00:02:25]} 19. Nf6+ {[%clk 00:57:31]} {[%emt
00:03:07]} Kf8 {[%clk 00:04:03]} {[%emt 00:00:23]} 20. axb3 {[%clk 00:57:46]}
{[%emt 00:00:16]} e5 {[%clk 00:03:39]} {[%emt 00:00:54]} 21. Bc5+ {[%clk
00:57:13]} {[%emt 00:01:02]} Kg7 {[%clk 00:03:43]} {[%emt 00:00:26]} 22. Nxe8+
{[%clk 00:57:32]} {[%emt 00:00:11]} Qxe8 {[%clk 00:02:11]} {[%emt 00:02:03]} 23.
Rxd5 {[%clk 00:53:42]} {[%emt 00:04:20]} Qc6 {[%clk 00:00:39]} {[%emt
00:02:02]} 24. O-O {[%clk 00:53:13]} {[%emt 00:00:58]} 1-0

[Event "Masters Tournament (MTO)"]
[Site "Biel, Switzerland"]
[Date "2026.07.13"]
[Round "1.24"]
[White "Aryan, Mehta"]
[Black "Nguyen, Thi Mai Hung"]
[Result "1/2-1/2"]
[TimeControl "100+30+30sec/move"]
[WhiteTitle "-"]
[BlackTitle "-"]
[WhiteFideId "33329664"]
[BlackFideId "12401676"]
[WhiteElo "1979"]
[BlackElo "2260"]

1. d4 {[%clk 01:40:37]} {[%emt 00:00:22]} d5 {[%clk 01:40:46]} {[%emt
00:00:15]} 2. c4 {[%clk 01:40:55]} {[%emt 00:00:12]} c6 {[%clk 01:40:35]}
{[%emt 00:00:41]} 3. cxd5 {[%clk 01:41:13]} {[%emt 00:00:12]} cxd5 {[%clk
01:40:45]} {[%emt 00:00:20]} 4. Nc3 {[%clk 01:41:38]} {[%emt 00:00:05]} Nf6
{[%clk 01:41:07]} {[%emt 00:00:08]} 5. Bg5 {[%clk 01:41:57]} {[%emt 00:00:10]}
Nc6 {[%clk 01:38:48]} {[%emt 00:02:50]} 6. Bxf6 {[%clk 01:42:18]} {[%emt
00:00:09]} gxf6 {[%clk 01:37:23]} {[%emt 00:01:55]} 7. e3 {[%clk 01:42:41]}
{[%emt 00:00:08]} f5 {[%clk 01:33:02]} {[%emt 00:04:51]} 8. f4 {[%clk
01:41:54]} {[%emt 00:01:16]} e6 {[%clk 01:31:50]} {[%emt 00:01:42]} 9. Nf3
{[%clk 01:41:30]} {[%emt 00:00:53]} Bg7 {[%clk 01:29:40]} {[%emt 00:02:40]} 10.
Bd3 {[%clk 01:41:10]} {[%emt 00:00:50]} a6 {[%clk 01:25:46]} {[%emt 00:04:25]}
11. O-O {[%clk 01:37:21]} {[%emt 00:04:18]} O-O {[%clk 01:18:56]} {[%emt
00:07:21]} 12. Rc1 {[%clk 01:32:35]} {[%emt 00:05:16]} Bd7 {[%clk 01:12:59]}
{[%emt 00:06:28]} 13. Ne2 {[%clk 01:26:47]} {[%emt 00:06:17]} Qb6 {[%clk
01:01:54]} {[%emt 00:11:34]} 14. Qd2 {[%clk 01:24:46]} {[%emt 00:02:31]} Rfc8
{[%clk 00:56:05]} {[%emt 00:06:20]} 15. Ng3 {[%clk 01:19:04]} {[%emt 00:06:12]}
Ne7 {[%clk 00:50:26]} {[%emt 00:06:09]} 16. Nh5 {[%clk 01:06:09]} {[%emt
00:13:24]} Bh8 {[%clk 00:48:29]} {[%emt 00:02:28]} 17. Ne5 {[%clk 00:53:08]}
{[%emt 00:13:30]} Be8 {[%clk 00:47:51]} {[%emt 00:01:08]} 18. Ng3 {[%clk
00:47:00]} {[%emt 00:06:38]} Ng6 {[%clk 00:39:46]} {[%emt 00:08:36]} 19. Rc2
{[%clk 00:36:15]} {[%emt 00:11:15]} Qd8 {[%clk 00:30:51]} {[%emt 00:09:25]} 20.
Rfc1 {[%clk 00:34:11]} {[%emt 00:02:34]} Bf6 {[%clk 00:29:36]} {[%emt
00:01:45]} 21. Ne2 {[%clk 00:24:28]} {[%emt 00:10:12]} Be7 {[%clk 00:29:19]}
{[%emt 00:00:48]} 22. Rxc8 {[%clk 00:22:31]} {[%emt 00:02:27]} Rxc8 {[%clk
00:29:45]} {[%emt 00:00:04]} 23. Rxc8 {[%clk 00:22:01]} {[%emt 00:01:00]} Qxc8
{[%clk 00:30:13]} {[%emt 00:00:02]} 24. Qc2 {[%clk 00:21:53]} {[%emt 00:00:37]}
Qxc2 {[%clk 00:22:39]} {[%emt 00:08:05]} 25. Bxc2 {[%clk 00:22:22]} Nxe5 {[%clk
00:19:27]} {[%emt 00:03:42]} 26. dxe5 {[%clk 00:21:59]} {[%emt 00:00:53]} f6
{[%clk 00:19:26]} {[%emt 00:00:31]} 27. exf6 {[%clk 00:21:09]} {[%emt
00:01:19]} Bxf6 {[%clk 00:19:52]} {[%emt 00:00:04]} 28. Nd4 {[%clk 00:21:36]}
{[%emt 00:00:04]} Kf7 {[%clk 00:20:03]} {[%emt 00:00:18]} 29. Kf2 {[%clk
00:20:35]} {[%emt 00:01:31]} h6 {[%clk 00:20:09]} {[%emt 00:00:25]} 30. h3
{[%clk 00:19:43]} {[%emt 00:01:21]} Bd7 {[%clk 00:09:43]} {[%emt 00:10:56]} 31.
g4 {[%clk 00:17:45]} {[%emt 00:02:28]} fxg4 {[%clk 00:09:57]} {[%emt 00:00:17]}
32. hxg4 {[%clk 00:18:11]} {[%emt 00:00:03]} Ke7 {[%clk 00:05:01]} {[%emt
00:05:27]} 33. b4 {[%clk 00:16:56]} {[%emt 00:01:45]} Kd6 {[%clk 00:05:13]}
{[%emt 00:00:17]} 34. Ke2 {[%clk 00:15:01]} {[%emt 00:02:25]} b6 {[%clk
00:04:02]} {[%emt 00:01:42]} 35. Kd2 {[%clk 00:13:00]} {[%emt 00:02:31]} Bg7
{[%clk 00:02:13]} {[%emt 00:02:19]} 36. Bg6 {[%clk 00:12:20]} {[%emt 00:01:09]}
Bc8 {[%clk 00:01:00]} {[%emt 00:01:44]} 37. Kc2 {[%clk 00:11:56]} {[%emt
00:00:54]} Bd7 {[%clk 00:00:56]} {[%emt 00:00:34]} 38. Kd2 {[%clk 00:12:14]}
{[%emt 00:00:12]} Bf8 {[%clk 00:01:02]} {[%emt 00:00:24]} 39. Nf3 {[%clk
00:11:05]} {[%emt 00:01:39]} a5 {[%clk 00:01:06]} {[%emt 00:00:26]} 40. a3
{[%clk 00:10:15]} {[%emt 00:01:19]} Bg7 {[%clk 00:00:48]} {[%emt 00:00:49]} 41.
Nd4 {[%clk 00:09:54]} {[%emt 00:00:52]} axb4 {[%clk 00:00:37]} {[%emt
00:00:40]} 42. axb4 {[%clk 00:09:54]} {[%emt 00:00:30]} Ke7 {[%clk 00:01:02]}
{[%emt 00:00:06]} 43. Bc2 {[%clk 00:07:32]} {[%emt 00:02:49]} Kf6 {[%clk
00:30:00]} {[%emt 00:01:03]} 44. Nf3 {[%clk 00:34:29]} {[%emt 00:03:33]} Bf8
{[%clk 00:30:54]} {[%emt 00:00:07]} 45. Kc3 {[%clk 00:33:38]} {[%emt 00:01:20]}
Bd6 {[%clk 00:31:17]} {[%emt 00:00:08]} 46. g5+ {[%clk 00:30:51]} {[%emt
00:03:17]} hxg5 {[%clk 00:31:30]} {[%emt 00:00:16]} 47. fxg5+ {[%clk 00:31:11]}
{[%emt 00:00:10]} Kg7 {[%clk 00:31:38]} {[%emt 00:00:22]} 48. e4 {[%clk
00:30:55]} {[%emt 00:00:47]} Bc6 {[%clk 00:27:53]} {[%emt 00:04:15]} 49. Nd4
{[%clk 00:25:22]} {[%emt 00:06:03]} Be5 {[%clk 00:24:30]} {[%emt 00:03:53]} 50.
Kd3 {[%clk 00:24:52]} {[%emt 00:01:00]} dxe4+ {[%clk 00:24:19]} {[%emt
00:00:42]} 51. Ke3 {[%clk 00:25:16]} {[%emt 00:00:05]} Bd7 {[%clk 00:23:18]}
{[%emt 00:01:31]} 52. Kxe4 {[%clk 00:23:21]} {[%emt 00:02:25]} Bd6 {[%clk
00:23:21]} {[%emt 00:00:26]} 53. Bb3 {[%clk 00:21:01]} {[%emt 00:02:50]} Kf7
{[%clk 00:22:39]} {[%emt 00:01:12]} 54. g6+ {[%clk 00:19:46]} {[%emt 00:01:46]}
Kxg6 {[%clk 00:22:50]} {[%emt 00:00:18]} 55. Bxe6 {[%clk 00:20:01]} {[%emt
00:00:15]} Be8 {[%clk 00:21:54]} {[%emt 00:01:27]} 56. b5 {[%clk 00:19:45]}
{[%emt 00:00:46]} Bc5 {[%clk 00:22:03]} {[%emt 00:00:21]} 57. Bd5 {[%clk
00:16:23]} {[%emt 00:03:51]} Kf6 {[%clk 00:21:01]} {[%emt 00:01:33]} 58. Bc6
{[%clk 00:15:59]} {[%emt 00:00:54]} Bg6+ {[%clk 00:21:16]} {[%emt 00:00:15]} 59.
Kd5 {[%clk 00:16:05]} {[%emt 00:00:17]} Bh5 {[%clk 00:20:25]} {[%emt 00:01:27]}
60. Ke4 {[%clk 00:15:35]} {[%emt 00:01:00]} Bg6+ {[%clk 00:20:20]} {[%emt
00:00:36]} 61. Kd5 {[%clk 00:15:58]} {[%emt 00:00:07]} Ke7 {[%clk 00:20:34]}
{[%emt 00:00:16]} 62. Nf3 {[%clk 00:15:50]} {[%emt 00:00:35]} Bf7+ {[%clk
00:20:40]} {[%emt 00:00:27]} 63. Ke5 {[%clk 00:15:59]} {[%emt 00:00:18]} Bd6+
{[%clk 00:20:30]} {[%emt 00:00:42]} 64. Ke4 {[%clk 00:16:06]} {[%emt 00:00:22]}
Bc4 {[%clk 00:18:19]} {[%emt 00:02:43]} 65. Nd4 {[%clk 00:16:11]} {[%emt
00:00:25]} Bh2 {[%clk 00:18:11]} {[%emt 00:00:38]} 66. Nf5+ {[%clk 00:15:44]}
{[%emt 00:00:56]} Ke6 {[%clk 00:18:19]} {[%emt 00:00:22]} 67. Ne3 {[%clk
00:14:55]} {[%emt 00:01:19]} Be2 {[%clk 00:18:42]} {[%emt 00:00:07]} 68. Nd5
{[%clk 00:14:53]} {[%emt 00:00:32]} Bf1 {[%clk 00:18:00]} {[%emt 00:01:12]} 69.
Nxb6 {[%clk 00:14:44]} {[%emt 00:00:39]} Bg2+ {[%clk 00:18:11]} {[%emt
00:00:19]} 70. Kd3 {[%clk 00:15:05]} {[%emt 00:00:09]} Bxc6 {[%clk 00:18:29]}
{[%emt 00:00:13]} 71. bxc6 {[%clk 00:15:33]} {[%emt 00:00:02]} Kd6 {[%clk
00:18:49]} {[%emt 00:00:09]} 72. c7 {[%clk 00:15:57]} {[%emt 00:00:07]} Kxc7
{[%clk 00:19:15]} {[%emt 00:00:04]} 1/2-1/2

[Event "Masters Tournament (MTO)"]
[Site "Biel, Switzerland"]
[Date "2026.07.13"]
[Round "1.25"]
[White "Kukushkin, Ivan"]
[Black "Wiesmann, Dominique"]
[Result "1-0"]
[TimeControl "100+30+30sec/move"]
[WhiteTitle "-"]
[BlackTitle "-"]
[WhiteFideId "11634103"]
[BlackFideId "1308262"]
[WhiteElo "2257"]
[BlackElo "1978"]

1. d4 {[%clk 01:40:58]} d6 {[%clk 01:40:50]} {[%emt 00:00:09]} 2. e4 {[%clk
01:40:04]} {[%emt 00:01:24]} Nf6 {[%clk 01:41:11]} {[%emt 00:00:08]} 3. Nc3
{[%clk 01:40:27]} {[%emt 00:00:08]} g6 {[%clk 01:41:31]} {[%emt 00:00:10]} 4.
Nf3 {[%clk 01:40:27]} {[%emt 00:00:30]} Bg7 {[%clk 01:41:51]} {[%emt 00:00:10]}
5. Bc4 {[%clk 01:39:19]} {[%emt 00:01:39]} O-O {[%clk 01:41:57]} {[%emt
00:00:24]} 6. O-O {[%clk 01:38:27]} {[%emt 00:01:22]} Nxe4 {[%clk 01:42:01]}
{[%emt 00:00:26]} 7. Nxe4 {[%clk 01:37:47]} {[%emt 00:01:10]} d5 {[%clk
01:42:21]} {[%emt 00:00:09]} 8. Bd3 {[%clk 01:38:03]} {[%emt 00:00:14]} dxe4
{[%clk 01:42:43]} {[%emt 00:00:07]} 9. Bxe4 {[%clk 01:38:30]} {[%emt 00:00:03]}
Nd7 {[%clk 01:39:56]} {[%emt 00:03:18]} 10. c3 {[%clk 01:35:10]} {[%emt
00:03:51]} c5 {[%clk 01:39:08]} {[%emt 00:01:18]} 11. Re1 {[%clk 01:34:50]}
{[%emt 00:00:50]} cxd4 {[%clk 01:36:40]} {[%emt 00:02:58]} 12. Nxd4 {[%clk
01:34:24]} {[%emt 00:00:56]} Rb8 {[%clk 01:25:18]} {[%emt 00:11:51]} 13. Bg5
{[%clk 01:33:14]} {[%emt 00:01:39]} Nf6 {[%clk 01:22:23]} {[%emt 00:03:26]} 14.
Bf4 {[%clk 01:31:14]} {[%emt 00:02:30]} Ra8 {[%clk 01:22:36]} {[%emt 00:00:18]}
15. Bf3 {[%clk 01:31:32]} {[%emt 00:00:12]} Nd5 {[%clk 01:17:39]} {[%emt
00:05:27]} 16. Bg3 {[%clk 01:31:21]} {[%emt 00:00:40]} e6 {[%clk 01:13:50]}
{[%emt 00:04:18]} 17. Nb5 {[%clk 01:26:20]} {[%emt 00:05:31]} Bd7 {[%clk
01:07:34]} {[%emt 00:06:46]} 18. Bxd5 {[%clk 01:25:02]} {[%emt 00:01:48]} exd5
{[%clk 01:06:30]} {[%emt 00:01:34]} 19. Nc7 {[%clk 01:24:34]} {[%emt 00:00:58]}
Rc8 {[%clk 01:06:41]} {[%emt 00:00:19]} 20. Nxd5 {[%clk 01:23:47]} {[%emt
00:01:17]} Be6 {[%clk 01:00:28]} {[%emt 00:06:43]} 21. Nc7 {[%clk 01:22:00]}
{[%emt 00:02:17]} Bf5 {[%clk 00:59:19]} {[%emt 00:01:40]} 22. Qxd8 {[%clk
01:20:21]} Rcxd8 {[%clk 00:56:20]} {[%emt 00:05:37]} 23. Rad1 {[%clk 01:19:46]}
{[%emt 00:01:06]} Rxd1 {[%clk 00:50:27]} {[%emt 00:06:23]} 24. Rxd1 {[%clk
01:19:35]} {[%emt 00:00:41]} a6 {[%clk 00:48:29]} {[%emt 00:02:28]} 25. h3
{[%clk 01:17:30]} {[%emt 00:02:34]} Bf6 {[%clk 00:38:00]} {[%emt 00:10:59]} 26.
Re1 {[%clk 01:16:04]} {[%emt 00:01:56]} Rd8 {[%clk 00:34:00]} {[%emt 00:04:30]}
27. Ne8 {[%clk 01:15:44]} {[%emt 00:00:50]} Bg5 {[%clk 00:31:05]} {[%emt
00:03:24]} 28. h4 {[%clk 01:13:39]} {[%emt 00:02:35]} Bh6 {[%clk 00:23:24]}
{[%emt 00:08:12]} 29. Bc7 {[%clk 01:11:20]} {[%emt 00:02:50]} Rc8 {[%clk
00:22:34]} {[%emt 00:01:19]} 30. Bg3 {[%clk 01:08:42]} {[%emt 00:03:08]} Be6
{[%clk 00:21:00]} {[%emt 00:02:04]} 31. Nd6 {[%clk 01:08:52]} {[%emt 00:00:20]}
Rc6 {[%clk 00:19:46]} {[%emt 00:01:45]} 32. a3 {[%clk 01:08:29]} {[%emt
00:00:52]} Bf8 {[%clk 00:18:52]} {[%emt 00:01:23]} 33. Nxb7 {[%clk 01:05:29]}
{[%emt 00:03:30]} Rb6 {[%clk 00:18:56]} {[%emt 00:00:27]} 34. Nd8 {[%clk
01:05:26]} {[%emt 00:00:33]} Bd5 {[%clk 00:16:19]} {[%emt 00:03:08]} 35. b4
{[%clk 01:05:17]} {[%emt 00:00:38]} a5 {[%clk 00:15:04]} {[%emt 00:01:45]} 36.
Bc7 {[%clk 01:05:10]} {[%emt 00:00:37]} Ra6 {[%clk 00:14:44]} {[%emt 00:00:51]}
37. b5 {[%clk 01:05:10]} {[%emt 00:00:29]} Rf6 {[%clk 00:13:27]} {[%emt
00:01:47]} 38. Re8 {[%clk 01:04:51]} {[%emt 00:00:50]} 1-0

[Event "Masters Tournament (MTO)"]
[Site "Biel, Switzerland"]
[Date "2026.07.13"]
[Round "1.26"]
[White "Damen, Josephine"]
[Black "Joly, Julien"]
[Result "1/2-1/2"]
[TimeControl "100+30+30sec/move"]
[WhiteTitle "-"]
[BlackTitle "-"]
[WhiteFideId "1074369"]
[BlackFideId "26082284"]
[WhiteElo "1971"]
[BlackElo "2257"]

1. e4 {[%clk 01:40:57]} d6 {[%clk 01:40:00]} {[%emt 00:01:00]} 2. d4 {[%clk
01:41:21]} {[%emt 00:00:05]} Nf6 {[%clk 01:40:11]} {[%emt 00:00:19]} 3. Nc3
{[%clk 01:41:43]} {[%emt 00:00:08]} g6 {[%clk 01:40:15]} {[%emt 00:00:27]} 4.
Nf3 {[%clk 01:37:23]} {[%emt 00:04:50]} Bg7 {[%clk 01:40:10]} {[%emt 00:00:34]}
5. Bc4 {[%clk 01:37:36]} {[%emt 00:00:17]} O-O {[%clk 01:40:09]} {[%emt
00:00:31]} 6. Be3 {[%clk 01:35:02]} {[%emt 00:03:04]} c6 {[%clk 01:35:28]}
{[%emt 00:05:11]} 7. Qd2 {[%clk 01:25:17]} {[%emt 00:10:15]} d5 {[%clk
01:25:09]} {[%emt 00:10:50]} 8. exd5 {[%clk 01:21:30]} {[%emt 00:04:18]} cxd5
{[%clk 01:23:05]} {[%emt 00:02:33]} 9. Bb3 {[%clk 01:21:21]} {[%emt 00:00:38]}
Nc6 {[%clk 01:22:20]} {[%emt 00:01:15]} 10. Bh6 {[%clk 01:13:12]} {[%emt
00:08:39]} Ne4 {[%clk 00:48:48]} {[%emt 00:34:02]} 11. Qe3 {[%clk 01:03:23]}
{[%emt 00:10:18]} Qa5 {[%clk 00:43:36]} {[%emt 00:05:42]} 12. Bxg7 {[%clk
01:01:02]} {[%emt 00:02:52]} Kxg7 {[%clk 00:43:56]} {[%emt 00:00:11]} 13. O-O
{[%clk 01:00:10]} {[%emt 00:01:21]} Nxc3 {[%clk 00:43:48]} {[%emt 00:00:38]} 14.
Qxc3 {[%clk 00:58:04]} {[%emt 00:02:37]} Qxc3 {[%clk 00:43:43]} {[%emt
00:00:35]} 15. bxc3 {[%clk 00:58:28]} {[%emt 00:00:05]} Rd8 {[%clk 00:43:21]}
{[%emt 00:00:52]} 16. Rfe1 {[%clk 00:56:01]} {[%emt 00:02:57]} e6 {[%clk
00:40:09]} {[%emt 00:03:43]} 17. Ba4 {[%clk 00:43:48]} {[%emt 00:12:42]} Na5
{[%clk 00:38:36]} {[%emt 00:02:03]} 18. Ne5 {[%clk 00:41:38]} {[%emt 00:02:40]}
Rd6 {[%clk 00:36:52]} {[%emt 00:02:15]} 19. Rab1 {[%clk 00:37:02]} {[%emt
00:05:05]} b6 {[%clk 00:36:43]} {[%emt 00:00:38]} 20. Be8 {[%clk 00:20:53]}
{[%emt 00:16:40]} f6 {[%clk 00:31:49]} {[%emt 00:05:23]} 21. Nf7 {[%clk
00:20:08]} {[%emt 00:01:16]} Rd7 {[%clk 00:30:43]} {[%emt 00:01:36]} 22. Bxd7
{[%clk 00:19:35]} {[%emt 00:01:02]} Bxd7 {[%clk 00:30:30]} {[%emt 00:00:44]} 23.
Nd6 {[%clk 00:19:58]} {[%emt 00:00:07]} Kf8 {[%clk 00:29:29]} {[%emt 00:01:31]}
24. Nb5 {[%clk 00:14:08]} {[%emt 00:06:21]} Bxb5 {[%clk 00:27:40]} {[%emt
00:02:19]} 25. Rxb5 {[%clk 00:14:25]} {[%emt 00:00:12]} Kf7 {[%clk 00:28:08]}
{[%emt 00:00:02]} 26. Rbb1 {[%clk 00:12:23]} {[%emt 00:02:31]} Nc4 {[%clk
00:27:03]} {[%emt 00:01:36]} 27. Re2 {[%clk 00:12:16]} {[%emt 00:00:36]} Rc8
{[%clk 00:25:56]} {[%emt 00:01:37]} 28. f3 {[%clk 00:09:27]} {[%emt 00:03:20]}
e5 {[%clk 00:23:24]} {[%emt 00:03:03]} 29. dxe5 {[%clk 00:05:59]} {[%emt
00:03:57]} fxe5 {[%clk 00:23:35]} {[%emt 00:00:19]} 30. Kf2 {[%clk 00:03:38]}
{[%emt 00:02:51]} Rc5 {[%clk 00:23:47]} {[%emt 00:00:18]} 31. a4 {[%clk
00:02:32]} {[%emt 00:01:36]} Ke6 {[%clk 00:23:45]} {[%emt 00:00:32]} 32. Rb4
{[%clk 00:02:03]} {[%emt 00:00:58]} Na3 {[%clk 00:21:13]} {[%emt 00:03:03]} 33.
Rb3 {[%clk 00:02:25]} {[%emt 00:00:08]} Nc4 {[%clk 00:21:39]} {[%emt 00:00:04]}
34. Rb4 {[%clk 00:02:50]} {[%emt 00:00:06]} Na3 {[%clk 00:21:56]} {[%emt
00:00:12]} 35. Rb3 {[%clk 00:01:23]} {[%emt 00:01:57]} 1/2-1/2